[Event "Early-Titled-Tuesday-Blitz-September-05-2023"]
[Site "Chess.com"]
[Date "2023.09.05"]
[Round "3"]
[White "Karacsonyi_Gellert"]
[Black "Cheer_Down"]
[Result "1/2-1/2"]
[WhiteElo "2822"]
[BlackElo "2445"]
[TimeControl "180+1"]
[EndTime "8:30:13 PDT"]
[Termination "Game drawn by 50-move rule"]

1. e4 {[%clk 0:03:00.9]} 1... c5 {[%clk 0:02:59.3]} 2. Nf3 {[%clk 0:03:01]} 2...
d6 {[%clk 0:02:58.8]} 3. d4 {[%clk 0:03:01.6]} 3... cxd4 {[%clk 0:02:58.4]} 4.
Nxd4 {[%clk 0:03:02.5]} 4... Nf6 {[%clk 0:02:58.7]} 5. Nc3 {[%clk 0:03:03.1]}
5... a6 {[%clk 0:02:58.9]} 6. Bc4 {[%clk 0:03:03.5]} 6... e6 {[%clk 0:02:56]} 7.
O-O {[%clk 0:03:04]} 7... Nc6 {[%clk 0:02:50.8]} 8. Bb3 {[%clk 0:02:59]} 8...
Be7 {[%clk 0:02:49.9]} 9. Be3 {[%clk 0:02:57.1]} 9... O-O {[%clk 0:02:28.4]} 10.
f4 {[%clk 0:02:56.3]} 10... Nxd4 {[%clk 0:02:03.6]} 11. Bxd4 {[%clk 0:02:55.3]}
11... b5 {[%clk 0:02:03.2]} 12. e5 {[%clk 0:02:52.6]} 12... dxe5 {[%clk
0:01:51.8]} 13. fxe5 {[%clk 0:02:53.5]} 13... Nd7 {[%clk 0:01:52]} 14. Qf3
{[%clk 0:02:53.4]} 14... Nc5 {[%clk 0:01:14.3]} 15. Rad1 {[%clk 0:02:31.6]}
15... Bb7 {[%clk 0:01:11.3]} 16. Qg4 {[%clk 0:02:30.5]} 16... Nxb3 {[%clk
0:01:08.8]} 17. cxb3 {[%clk 0:02:27.7]} 17... b4 {[%clk 0:00:44.3]} 18. Ne4
{[%clk 0:02:21.6]} 18... Bxe4 {[%clk 0:00:42.7]} 19. Qxe4 {[%clk 0:02:22.5]}
19... Rc8 {[%clk 0:00:40.2]} 20. Kh1 {[%clk 0:02:17.7]} 20... Qd5 {[%clk
0:00:33.1]} 21. Qg4 {[%clk 0:02:02.4]} 21... Rc2 {[%clk 0:00:31.5]} 22. Be3
{[%clk 0:02:02.8]} 22... Qxe5 {[%clk 0:00:21.6]} 23. Bd4 {[%clk 0:02:02.1]}
23... Qg5 {[%clk 0:00:21.6]} 24. Qe4 {[%clk 0:01:51.7]} 24... Rfc8 {[%clk
0:00:19.3]} 25. Qf3 {[%clk 0:01:51.9]} 25... f5 {[%clk 0:00:18.5]} 26. Rfe1
{[%clk 0:01:36.3]} 26... Rc1 {[%clk 0:00:17.1]} 27. Be3 {[%clk 0:01:37]} 27...
Rxd1 {[%clk 0:00:17.3]} 28. Rxd1 {[%clk 0:01:37.9]} 28... Qg4 {[%clk 0:00:16.3]}
29. Rd7 {[%clk 0:01:13.3]} 29... Qxf3 {[%clk 0:00:14.1]} 30. gxf3 {[%clk
0:01:13.2]} 30... Kf8 {[%clk 0:00:14.5]} 31. Ra7 {[%clk 0:00:54.9]} 31... Rc2
{[%clk 0:00:14.6]} 32. Bd4 {[%clk 0:00:55.3]} 32... Rd2 {[%clk 0:00:10.2]} 33.
Bxg7+ {[%clk 0:00:54.6]} 33... Kxg7 {[%clk 0:00:09.8]} 34. Rxe7+ {[%clk
0:00:55.3]} 34... Kf6 {[%clk 0:00:10.4]} 35. Ra7 {[%clk 0:00:46.4]} 35... Rxb2
{[%clk 0:00:11.3]} 36. Rxa6 {[%clk 0:00:46.9]} 36... h5 {[%clk 0:00:11.2]} 37.
Rb6 {[%clk 0:00:40.7]} 37... h4 {[%clk 0:00:10]} 38. h3 {[%clk 0:00:36.4]} 38...
Rxa2 {[%clk 0:00:09.7]} 39. Rxb4 {[%clk 0:00:37]} 39... Kg5 {[%clk 0:00:10]} 40.
f4+ {[%clk 0:00:33.7]} 40... Kf6 {[%clk 0:00:09]} 41. Kg1 {[%clk 0:00:34.6]}
41... Rb2 {[%clk 0:00:09]} 42. Rb8 {[%clk 0:00:34.3]} 42... Rc2 {[%clk
0:00:08.1]} 43. Rh8 {[%clk 0:00:15.5]} 43... Rb2 {[%clk 0:00:08]} 44. Rxh4
{[%clk 0:00:11.6]} 44... Rxb3 {[%clk 0:00:08.3]} 45. Rh6+ {[%clk 0:00:11.7]}
45... Kf7 {[%clk 0:00:07.8]} 46. Kg2 {[%clk 0:00:10]} 46... Re3 {[%clk
0:00:07.8]} 47. Rh7+ {[%clk 0:00:09.5]} 47... Kf6 {[%clk 0:00:07.6]} 48. Rh6+
{[%clk 0:00:08.6]} 48... Kf7 {[%clk 0:00:08]} 49. Rh8 {[%clk 0:00:08.8]} 49...
e5 {[%clk 0:00:07.4]} 50. fxe5 {[%clk 0:00:06.3]} 50... Rxe5 {[%clk 0:00:07.4]}
51. Rh6 {[%clk 0:00:06.6]} 51... Ra5 {[%clk 0:00:06.8]} 52. Rb6 {[%clk
0:00:06.7]} 52... Kg7 {[%clk 0:00:07.2]} 53. Kg3 {[%clk 0:00:07.1]} 53... Kf7
{[%clk 0:00:07.4]} 54. Kf4 {[%clk 0:00:07.6]} 54... Kg7 {[%clk 0:00:07.5]} 55.
h4 {[%clk 0:00:08.2]} 55... Kh7 {[%clk 0:00:07.9]} 56. h5 {[%clk 0:00:08.8]}
56... Kg7 {[%clk 0:00:08.3]} 57. Kg5 {[%clk 0:00:09.4]} 57... Kh7 {[%clk
0:00:08.2]} 58. Rb7+ {[%clk 0:00:09.4]} 58... Kh8 {[%clk 0:00:07.7]} 59. Rb6
{[%clk 0:00:10.1]} 59... Kh7 {[%clk 0:00:07.4]} 60. h6 {[%clk 0:00:09.7]} 60...
f4+ {[%clk 0:00:07.4]} 61. Kxf4 {[%clk 0:00:08.8]} 61... Rh5 {[%clk 0:00:07.8]}
62. Kg4 {[%clk 0:00:09.1]} 62... Rxh6 {[%clk 0:00:07.7]} 63. Rb7+ {[%clk
0:00:09.8]} 63... Kh8 {[%clk 0:00:07.3]} 64. Kg5 {[%clk 0:00:09.3]} 64... Rh1
{[%clk 0:00:06.8]} 65. Rb3 {[%clk 0:00:07]} 65... Rg1+ {[%clk 0:00:07.2]} 66.
Kf6 {[%clk 0:00:07.5]} 66... Kh7 {[%clk 0:00:07]} 67. Rb7+ {[%clk 0:00:06.5]}
67... Kh6 {[%clk 0:00:07.2]} 68. Rb2 {[%clk 0:00:07.4]} 68... Rf1+ {[%clk
0:00:07.4]} 69. Ke5 {[%clk 0:00:08]} 69... Kg7 {[%clk 0:00:07.7]} 70. Rg2+
{[%clk 0:00:08.4]} 70... Kf7 {[%clk 0:00:07.6]} 71. Rh2 {[%clk 0:00:08.4]} 71...
Rf6 {[%clk 0:00:08]} 72. Ra2 {[%clk 0:00:07.6]} 72... Re6+ {[%clk 0:00:08.3]}
73. Kf5 {[%clk 0:00:08.3]} 73... Rf6+ {[%clk 0:00:08.7]} 74. Kg5 {[%clk
0:00:09]} 74... Rg6+ {[%clk 0:00:09.2]} 75. Kf5 {[%clk 0:00:08.9]} 75... Rb6
{[%clk 0:00:09.8]} 76. Ra7+ {[%clk 0:00:08.4]} 76... Ke8 {[%clk 0:00:10.4]} 77.
Rc7 {[%clk 0:00:09.2]} 77... Kd8 {[%clk 0:00:10.5]} 78. Rh7 {[%clk 0:00:09]}
78... Rb5+ {[%clk 0:00:11]} 79. Ke6 {[%clk 0:00:09.3]} 79... Kc8 {[%clk
0:00:11.2]} 80. Kd6 {[%clk 0:00:09.7]} 80... Rb6+ {[%clk 0:00:11]} 81. Kc5
{[%clk 0:00:10.1]} 81... Rg6 {[%clk 0:00:11.6]} 82. Rf7 {[%clk 0:00:10.4]} 82...
Kd8 {[%clk 0:00:11.9]} 83. Rf5 {[%clk 0:00:10.3]} 83... Ke8 {[%clk 0:00:12.3]}
84. Kd5 {[%clk 0:00:10.6]} 84... Ke7 {[%clk 0:00:12.7]} 85. Rf2 {[%clk
0:00:11.2]} 85... Kd7 {[%clk 0:00:12.6]} 86. Rf7+ {[%clk 0:00:10.6]} 86... Ke8
{[%clk 0:00:13.1]} 87. Ra7 {[%clk 0:00:11.5]} 87... Kd8 {[%clk 0:00:13.2]} 88.
Ke5 {[%clk 0:00:12]} 88... Ke8 {[%clk 0:00:13.5]} 89. Kf5 {[%clk 0:00:12.2]}
89... Rb6 {[%clk 0:00:14.1]} 90. Rc7 {[%clk 0:00:12.4]} 90... Kd8 {[%clk
0:00:14.6]} 91. Rh7 {[%clk 0:00:13]} 91... Ke8 {[%clk 0:00:14.9]} 92. Ke5 {[%clk
0:00:13.5]} 92... Kd8 {[%clk 0:00:15.2]} 93. Rf7 {[%clk 0:00:14]} 93... Rg6
{[%clk 0:00:15.4]} 94. Rf3 {[%clk 0:00:14.8]} 94... Rh6 {[%clk 0:00:15.6]} 95.
Rd3+ {[%clk 0:00:14.5]} 95... Kc8 {[%clk 0:00:16]} 96. Ra3 {[%clk 0:00:15.4]}
96... Kb8 {[%clk 0:00:16.3]} 97. Kf5 {[%clk 0:00:16]} 97... Rb6 {[%clk
0:00:15.7]} 98. Ra4 {[%clk 0:00:16.3]} 98... Kb7 {[%clk 0:00:16.1]} 99. Ke5
{[%clk 0:00:16.9]} 99... Kc6 {[%clk 0:00:16.4]} 100. Rc4+ {[%clk 0:00:16.6]}
100... Kb5 {[%clk 0:00:16.5]} 101. Rc1 {[%clk 0:00:17.5]} 101... Kb4 {[%clk
0:00:16.6]} 102. Kd5 {[%clk 0:00:17.5]} 102... Rb5+ {[%clk 0:00:16.7]} 103. Kd4
{[%clk 0:00:18.2]} 103... Rh5 {[%clk 0:00:17.3]} 104. Rb1+ {[%clk 0:00:18.5]}
104... Ka3 {[%clk 0:00:17.4]} 105. Kc3 {[%clk 0:00:19.1]} 105... Rh3+ {[%clk
0:00:17.8]} 106. Kc4 {[%clk 0:00:19.1]} 106... Rh4+ {[%clk 0:00:18]} 107. Kc5
{[%clk 0:00:19.8]} 107... Rh5+ {[%clk 0:00:18.2]} 108. Kd4 {[%clk 0:00:20.5]}
108... Rh4+ {[%clk 0:00:18.6]} 109. Ke5 {[%clk 0:00:21.3]} 109... Rh5+ {[%clk
0:00:19]} 110. Kf4 {[%clk 0:00:21.8]} 110... Rh4+ {[%clk 0:00:18.7]} 111. Kg3
{[%clk 0:00:21.8]} 111... Rh8 {[%clk 0:00:19.3]} 112. Rb7 {[%clk 0:00:21.8]}
112... Rg8+ {[%clk 0:00:19.4]} 1/2-1/2

[Event "Early-Titled-Tuesday-Blitz-September-05-2023"]
[Site "Chess.com"]
[Date "2023.09.05"]
[Round "3"]
[White "crazy_m_attack"]
[Black "WPWPWP-2015"]
[Result "1/2-1/2"]
[WhiteElo "2350"]
[BlackElo "2559"]
[TimeControl "180+1"]
[EndTime "8:30:14 PDT"]
[Termination "Game drawn by repetition"]

1. e4 {[%clk 0:03:00.9]} 1... c5 {[%clk 0:02:59]} 2. Nf3 {[%clk 0:03:00.8]} 2...
d6 {[%clk 0:02:59.3]} 3. d4 {[%clk 0:03:00.8]} 3... cxd4 {[%clk 0:02:59.6]} 4.
Nxd4 {[%clk 0:03:01.7]} 4... Nf6 {[%clk 0:03:00]} 5. Nc3 {[%clk 0:03:02.3]} 5...
a6 {[%clk 0:03:00.3]} 6. Be2 {[%clk 0:03:01.5]} 6... e6 {[%clk 0:02:57.4]} 7.
O-O {[%clk 0:02:58.4]} 7... Be7 {[%clk 0:02:56.8]} 8. Be3 {[%clk 0:02:58.2]}
8... Nc6 {[%clk 0:02:56.4]} 9. f4 {[%clk 0:02:55.7]} 9... O-O {[%clk 0:02:54.3]}
10. a4 {[%clk 0:02:55.2]} 10... Bd7 {[%clk 0:02:52.2]} 11. Kh1 {[%clk
0:02:53.9]} 11... Rc8 {[%clk 0:02:50]} 12. Qe1 {[%clk 0:02:49.5]} 12... Na5
{[%clk 0:02:45.4]} 13. Bf3 {[%clk 0:02:45.9]} 13... Nc4 {[%clk 0:02:41.8]} 14.
Bc1 {[%clk 0:02:43.1]} 14... e5 {[%clk 0:02:40.2]} 15. Nf5 {[%clk 0:02:01.9]}
15... Bxf5 {[%clk 0:02:26.8]} 16. exf5 {[%clk 0:02:02.8]} 16... exf4 {[%clk
0:02:26.7]} 17. Bxb7 {[%clk 0:01:50.2]} 17... Rb8 {[%clk 0:02:26]} 18. Bxa6
{[%clk 0:01:49.1]} 18... Ne3 {[%clk 0:02:22.7]} 19. Bxe3 {[%clk 0:01:39]} 19...
fxe3 {[%clk 0:02:23.6]} 20. Qxe3 {[%clk 0:01:39.7]} 20... Rxb2 {[%clk
0:02:21.1]} 21. Rae1 {[%clk 0:01:39.4]} 21... Qa5 {[%clk 0:02:09.5]} 22. Bb5
{[%clk 0:01:30.4]} 22... Bd8 {[%clk 0:02:03.3]} 23. Qg3 {[%clk 0:01:13]} 23...
Rxc2 {[%clk 0:01:55.8]} 24. Ne4 {[%clk 0:00:58.8]} 24... d5 {[%clk 0:01:20.2]}
25. Nxf6+ {[%clk 0:00:15.2]} 25... Bxf6 {[%clk 0:01:19.7]} 26. Qd3 {[%clk
0:00:12.8]} 26... Rd2 {[%clk 0:01:02.6]} 27. Qa3 {[%clk 0:00:11.9]} 27... Rd8
{[%clk 0:00:31.7]} 28. Rc1 {[%clk 0:00:05.1]} 28... h6 {[%clk 0:00:30.6]} 29.
Qc5 {[%clk 0:00:01.3]} 29... d4 {[%clk 0:00:22.8]} 30. Rcd1 {[%clk 0:00:01.5]}
30... d3 {[%clk 0:00:15.2]} 31. Rxd2 {[%clk 0:00:01.1]} 31... Qxd2 {[%clk
0:00:15.9]} 32. Qa3 {[%clk 0:00:01.6]} 32... Qe2 {[%clk 0:00:14.8]} 33. Qc1
{[%clk 0:00:02.2]} 33... Bg5 {[%clk 0:00:10.7]} 34. Qd1 {[%clk 0:00:03.1]} 34...
Qc2 {[%clk 0:00:08.1]} 35. h3 {[%clk 0:00:02.1]} 35... Qc3 {[%clk 0:00:05.3]}
36. Rf3 {[%clk 0:00:01.8]} 36... Qd4 {[%clk 0:00:05]} 37. Rxd3 {[%clk
0:00:01.8]} 37... Qb6 {[%clk 0:00:05.1]} 38. Rxd8+ {[%clk 0:00:02.7]} 38... Bxd8
{[%clk 0:00:05.5]} 39. Qd5 {[%clk 0:00:02.4]} 39... Bc7 {[%clk 0:00:03.1]} 40.
Qc6 {[%clk 0:00:02.7]} 40... Qb8 {[%clk 0:00:02.3]} 41. Qe8+ {[%clk 0:00:02.9]}
41... Qxe8 {[%clk 0:00:02.5]} 42. Bxe8 {[%clk 0:00:03.8]} 42... Kf8 {[%clk
0:00:03.2]} 43. Bb5 {[%clk 0:00:03.9]} 43... Ke7 {[%clk 0:00:04.1]} 44. g4
{[%clk 0:00:03.7]} 44... Kf6 {[%clk 0:00:04.3]} 45. Kg2 {[%clk 0:00:04.2]} 45...
Bb6 {[%clk 0:00:04.6]} 46. Be8 {[%clk 0:00:03.5]} 46... Ke7 {[%clk 0:00:04.8]}
47. Bb5 {[%clk 0:00:04.1]} 47... f6 {[%clk 0:00:05.4]} 48. Kf3 {[%clk
0:00:04.6]} 48... Kd6 {[%clk 0:00:05.9]} 49. Ke4 {[%clk 0:00:04.9]} 49... Ba7
{[%clk 0:00:05.8]} 50. a5 {[%clk 0:00:03.3]} 50... Kc5 {[%clk 0:00:05.7]} 51.
Be2 {[%clk 0:00:02.9]} 51... Bb8 {[%clk 0:00:06]} 52. a6 {[%clk 0:00:03.6]}
52... Ba7 {[%clk 0:00:06.4]} 53. h4 {[%clk 0:00:03.4]} 53... Kd6 {[%clk
0:00:06.5]} 54. Kf4 {[%clk 0:00:03.6]} 54... Bf2 {[%clk 0:00:06.1]} 55. h5
{[%clk 0:00:01.7]} 55... Bb6 {[%clk 0:00:05.5]} 56. Ke4 {[%clk 0:00:02.3]} 56...
Kc5 {[%clk 0:00:05.5]} 57. Bf1 {[%clk 0:00:02.1]} 57... Ba7 {[%clk 0:00:05.7]}
58. Kd3 {[%clk 0:00:02.7]} 58... Kd5 {[%clk 0:00:05.1]} 59. Ke2 {[%clk
0:00:02.4]} 59... Ke4 {[%clk 0:00:05.3]} 60. Kd2 {[%clk 0:00:01.9]} 60... Kf3
{[%clk 0:00:05.1]} 61. Be2+ {[%clk 0:00:02.5]} 61... Kf4 {[%clk 0:00:05.4]} 62.
Kc3 {[%clk 0:00:02.8]} 62... Ke5 {[%clk 0:00:05.8]} 63. Kb4 {[%clk 0:00:03.2]}
63... Kd6 {[%clk 0:00:05.8]} 64. Kb5 {[%clk 0:00:03.9]} 64... Kd5 {[%clk
0:00:05.9]} 65. Bf3+ {[%clk 0:00:04.1]} 65... Kd6 {[%clk 0:00:05.9]} 66. Bg2
{[%clk 0:00:03.9]} 66... Bf2 {[%clk 0:00:05.6]} 67. Kc4 {[%clk 0:00:03]} 67...
Bg1 {[%clk 0:00:04.8]} 68. Bb7 {[%clk 0:00:02.7]} 68... Ke5 {[%clk 0:00:04.6]}
69. Bf3 {[%clk 0:00:02.3]} 69... Kf4 {[%clk 0:00:04.4]} 70. Be2 {[%clk
0:00:02.4]} 70... Ke5 {[%clk 0:00:04.5]} 71. Kb5 {[%clk 0:00:02.8]} 71... Kd6
{[%clk 0:00:04.9]} 72. Bf3 {[%clk 0:00:02.2]} 72... Bf2 {[%clk 0:00:04.9]} 73.
Bg2 {[%clk 0:00:02.8]} 73... Be3 {[%clk 0:00:04.6]} 74. Bf3 {[%clk 0:00:03.7]}
74... Bd4 {[%clk 0:00:04.8]} 75. Bg2 {[%clk 0:00:04.2]} 75... Bc5 {[%clk
0:00:04.9]} 76. Bf3 {[%clk 0:00:05.1]} 76... Ba7 {[%clk 0:00:05.1]} 77. Be2
{[%clk 0:00:05.1]} 77... Be3 {[%clk 0:00:04.8]} 78. Bc4 {[%clk 0:00:05.3]} 78...
Bf2 {[%clk 0:00:04.2]} 79. Bf7 {[%clk 0:00:04.1]} 79... Bg1 {[%clk 0:00:04.1]}
80. Bc4 {[%clk 0:00:03.8]} 80... Be3 {[%clk 0:00:03.8]} 81. Be2 {[%clk
0:00:04.3]} 81... Kd5 {[%clk 0:00:04]} 82. Bf3+ {[%clk 0:00:03.1]} 82... Kd6
{[%clk 0:00:04.4]} 83. Be2 {[%clk 0:00:02.8]} 83... Bf2 {[%clk 0:00:04.5]} 84.
Bf3 {[%clk 0:00:03.2]} 84... Ke5 {[%clk 0:00:04.3]} 85. Kc6 {[%clk 0:00:03.1]}
85... Kf4 {[%clk 0:00:04.3]} 86. Be2 {[%clk 0:00:03.6]} 86... Ke3 {[%clk
0:00:04.5]} 87. Bd1 {[%clk 0:00:04.1]} 87... Kd2 {[%clk 0:00:04.7]} 88. Bb3
{[%clk 0:00:04.5]} 88... Ke2 {[%clk 0:00:04.4]} 89. a7 {[%clk 0:00:04.8]} 89...
Bxa7 {[%clk 0:00:03.9]} 90. Kd6 {[%clk 0:00:04.8]} 90... Kf3 {[%clk 0:00:03.6]}
91. Bd1+ {[%clk 0:00:05.1]} 91... Kf4 {[%clk 0:00:03.9]} 92. Ke7 {[%clk
0:00:05.2]} 92... Kg5 {[%clk 0:00:04.1]} 93. Kf7 {[%clk 0:00:05.6]} 93... Bd4
{[%clk 0:00:04.3]} 94. Kxg7 {[%clk 0:00:05.8]} 94... Bc3 {[%clk 0:00:05]} 95.
Kf7 {[%clk 0:00:06.3]} 95... Bb2 {[%clk 0:00:05.9]} 96. Kg7 {[%clk 0:00:06.8]}
96... Bc3 {[%clk 0:00:06.8]} 97. Kf7 {[%clk 0:00:07.5]} 97... Bd2 {[%clk
0:00:07.7]} 98. Kg7 {[%clk 0:00:08.2]} 98... Be3 {[%clk 0:00:08.6]} 99. Kf7
{[%clk 0:00:08.8]} 99... Bf2 {[%clk 0:00:09.5]} 100. Kg7 {[%clk 0:00:09.4]}
100... Bg1 {[%clk 0:00:10.4]} 101. Kf7 {[%clk 0:00:10.3]} 101... Bh2 {[%clk
0:00:11.3]} 102. Kg7 {[%clk 0:00:11.2]} 102... Bg3 {[%clk 0:00:12.1]} 103. Kf7
{[%clk 0:00:12.1]} 103... Bf4 {[%clk 0:00:13]} 104. Kg7 {[%clk 0:00:13]} 104...
Bg3 {[%clk 0:00:13.6]} 105. Kf7 {[%clk 0:00:13.9]} 105... Bh4 {[%clk 0:00:14]}
106. Kg7 {[%clk 0:00:14.4]} 106... Bg3 {[%clk 0:00:14.2]} 1/2-1/2

[Event "Early-Titled-Tuesday-Blitz-September-05-2023"]
[Site "Chess.com"]
[Date "2023.09.05"]
[Round "4"]
[White "colegiodemadrid"]
[Black "chess123456s"]
[Result "0-1"]
[WhiteElo "2457"]
[BlackElo "2672"]
[TimeControl "180+1"]
[EndTime "8:32:58 PDT"]
[Termination "chess123456s won by checkmate"]

1. e4 {[%clk 0:02:59.3]} 1... e5 {[%clk 0:02:59.8]} 2. Nf3 {[%clk 0:02:59]} 2...
Nc6 {[%clk 0:03:00.5]} 3. Bc4 {[%clk 0:02:59.7]} 3... Nf6 {[%clk 0:03:00.6]} 4.
d4 {[%clk 0:02:59.4]} 4... exd4 {[%clk 0:03:00.7]} 5. e5 {[%clk 0:02:59.8]} 5...
d5 {[%clk 0:03:01]} 6. Bb5 {[%clk 0:02:59.4]} 6... Ne4 {[%clk 0:03:01.2]} 7.
Nxd4 {[%clk 0:03:00.2]} 7... Bc5 {[%clk 0:03:01.5]} 8. O-O {[%clk 0:03:00.1]}
8... O-O {[%clk 0:03:01.4]} 9. Nxc6 {[%clk 0:02:43.6]} 9... bxc6 {[%clk
0:03:01.2]} 10. Bxc6 {[%clk 0:02:43.7]} 10... Ba6 {[%clk 0:03:01.3]} 11. Qxd5
{[%clk 0:02:38.3]} 11... Bxf1 {[%clk 0:02:59.7]} 12. Qxd8 {[%clk 0:02:11.7]}
12... Raxd8 {[%clk 0:02:53.9]} 13. Bxe4 {[%clk 0:02:12.6]} 13... Rd1 {[%clk
0:02:38.3]} 14. Nc3 {[%clk 0:02:11.5]} 14... Re1 {[%clk 0:02:37.6]} 15. Be3
{[%clk 0:01:57]} 15... Rxa1 {[%clk 0:02:34.5]} 16. Bxc5 {[%clk 0:01:57.3]} 16...
Be2+ {[%clk 0:02:33.5]} 17. Nd1 {[%clk 0:01:52.3]} 17... Rxd1# {[%clk
0:02:33.2]} 0-1

[Event "Early-Titled-Tuesday-Blitz-September-05-2023"]
[Site "Chess.com"]
[Date "2023.09.05"]
[Round "4"]
[White "moro182"]
[Black "Jospem"]
[Result "0-1"]
[WhiteElo "2846"]
[BlackElo "3057"]
[TimeControl "180+1"]
[EndTime "8:33:08 PDT"]
[Termination "Jospem won by resignation"]

1. c4 {[%clk 0:03:00.9]} 1... Nf6 {[%clk 0:03:00.7]} 2. g3 {[%clk 0:02:59.7]}
2... d6 {[%clk 0:02:57.4]} 3. Bg2 {[%clk 0:02:59.4]} 3... g6 {[%clk 0:02:58.3]}
4. b3 {[%clk 0:02:59.4]} 4... Bg7 {[%clk 0:02:59]} 5. Bb2 {[%clk 0:03:00.1]}
5... O-O {[%clk 0:02:59.7]} 6. d4 {[%clk 0:03:00.8]} 6... c6 {[%clk 0:02:59.7]}
7. Nf3 {[%clk 0:03:01.3]} 7... Bf5 {[%clk 0:03:00.3]} 8. Nh4 {[%clk 0:03:00.5]}
8... Be6 {[%clk 0:02:58.8]} 9. O-O {[%clk 0:02:58.4]} 9... d5 {[%clk 0:02:59.2]}
10. Nd2 {[%clk 0:02:56.8]} 10... a5 {[%clk 0:02:58.8]} 11. Nhf3 {[%clk
0:02:40.8]} 11... Bf5 {[%clk 0:02:56.8]} 12. Nh4 {[%clk 0:02:36.6]} 12... Bg4
{[%clk 0:02:57.1]} 13. h3 {[%clk 0:02:36.2]} 13... Be6 {[%clk 0:02:57.7]} 14.
Nhf3 {[%clk 0:02:36.6]} 14... a4 {[%clk 0:02:43.4]} 15. e3 {[%clk 0:02:36.4]}
15... Bf5 {[%clk 0:02:40.3]} 16. Bc3 {[%clk 0:02:24]} 16... Ne4 {[%clk
0:02:33.8]} 17. Nxe4 {[%clk 0:02:23.6]} 17... Bxe4 {[%clk 0:02:34.7]} 18. Re1
{[%clk 0:02:13.2]} 18... Nd7 {[%clk 0:02:33.8]} 19. Bf1 {[%clk 0:02:11.9]} 19...
axb3 {[%clk 0:02:26]} 20. axb3 {[%clk 0:02:08.5]} 20... Rxa1 {[%clk 0:02:25.2]}
21. Qxa1 {[%clk 0:02:09.4]} 21... Bxf3 {[%clk 0:02:25.3]} 0-1

[Event "Early-Titled-Tuesday-Blitz-September-05-2023"]
[Site "Chess.com"]
[Date "2023.09.05"]
[Round "4"]
[White "Druid24"]
[Black "Gogolev_Artemy"]
[Result "1-0"]
[WhiteElo "2650"]
[BlackElo "2431"]
[TimeControl "180+1"]
[EndTime "8:34:08 PDT"]
[Termination "Druid24 won by resignation"]

1. e4 {[%clk 0:03:00.1]} 1... c5 {[%clk 0:02:59.7]} 2. Nc3 {[%clk 0:03:00.3]}
2... e6 {[%clk 0:03:00.1]} 3. Nf3 {[%clk 0:03:00]} 3... Nc6 {[%clk 0:02:59.4]}
4. Bb5 {[%clk 0:02:59.8]} 4... a6 {[%clk 0:02:51.8]} 5. Bxc6 {[%clk 0:02:59.5]}
5... bxc6 {[%clk 0:02:52.7]} 6. O-O {[%clk 0:02:59.9]} 6... d6 {[%clk
0:02:53.6]} 7. d3 {[%clk 0:02:58.8]} 7... e5 {[%clk 0:02:49.7]} 8. Be3 {[%clk
0:02:57.7]} 8... Nf6 {[%clk 0:02:49.3]} 9. h3 {[%clk 0:02:56.9]} 9... Be7 {[%clk
0:02:49]} 10. Nd2 {[%clk 0:02:57]} 10... O-O {[%clk 0:02:48.8]} 11. f4 {[%clk
0:02:57]} 11... exf4 {[%clk 0:02:37]} 12. Bxf4 {[%clk 0:02:57.8]} 12... d5
{[%clk 0:02:32.1]} 13. e5 {[%clk 0:02:57.3]} 13... Ne8 {[%clk 0:02:31.9]} 14.
Qf3 {[%clk 0:02:56.1]} 14... Rb8 {[%clk 0:02:11.4]} 15. b3 {[%clk 0:02:54.3]}
15... Be6 {[%clk 0:02:00]} 16. Rae1 {[%clk 0:02:53.3]} 16... Nc7 {[%clk
0:01:55.3]} 17. Ne2 {[%clk 0:02:49.9]} 17... Nb5 {[%clk 0:01:49]} 18. a4 {[%clk
0:02:46.6]} 18... Nd4 {[%clk 0:01:45.4]} 19. Nxd4 {[%clk 0:02:42.5]} 19... cxd4
{[%clk 0:01:46.3]} 20. Qf2 {[%clk 0:02:42.6]} 20... Bh4 {[%clk 0:01:37.9]} 21.
Bg3 {[%clk 0:02:40.9]} 21... Bg5 {[%clk 0:01:28.4]} 22. Nf3 {[%clk 0:02:34.4]}
22... Be3 {[%clk 0:01:28]} 23. Rxe3 {[%clk 0:02:34.2]} 23... dxe3 {[%clk
0:01:28.9]} 24. Qxe3 {[%clk 0:02:34.8]} 24... f5 {[%clk 0:01:10.4]} 25. exf6
{[%clk 0:02:31.3]} 25... Qxf6 {[%clk 0:01:01]} 26. Bxb8 {[%clk 0:02:29.8]} 26...
Rxb8 {[%clk 0:01:01.9]} 27. Nd4 {[%clk 0:02:29.7]} 1-0

[Event "Early-Titled-Tuesday-Blitz-September-05-2023"]
[Site "Chess.com"]
[Date "2023.09.05"]
[Round "4"]
[White "Vaathi_Coming"]
[Black "Karttunen"]
[Result "1-0"]
[WhiteElo "2863"]
[BlackElo "2580"]
[TimeControl "180+1"]
[EndTime "8:34:41 PDT"]
[Termination "Vaathi_Coming won by resignation"]

1. b3 {[%clk 0:02:42.5]} 1... d5 {[%clk 0:02:59.3]} 2. Bb2 {[%clk 0:02:40.2]}
2... Nc6 {[%clk 0:02:58.8]} 3. Nf3 {[%clk 0:02:40.3]} 3... f6 {[%clk 0:02:55]}
4. c4 {[%clk 0:02:38.7]} 4... d4 {[%clk 0:02:54.1]} 5. e3 {[%clk 0:02:38.8]}
5... e5 {[%clk 0:02:53.9]} 6. exd4 {[%clk 0:02:38.8]} 6... exd4 {[%clk 0:02:54]}
7. Bd3 {[%clk 0:02:37]} 7... Nge7 {[%clk 0:02:31.6]} 8. O-O {[%clk 0:02:35.8]}
8... g6 {[%clk 0:02:31.5]} 9. Na3 {[%clk 0:02:31.5]} 9... Bg7 {[%clk 0:02:27.5]}
10. Nc2 {[%clk 0:02:19.6]} 10... f5 {[%clk 0:02:27]} 11. b4 {[%clk 0:02:19]}
11... O-O {[%clk 0:01:40]} 12. Re1 {[%clk 0:02:11.1]} 12... Qd6 {[%clk
0:01:14.7]} 13. c5 {[%clk 0:02:05.1]} 13... Qd5 {[%clk 0:01:14.7]} 14. b5 {[%clk
0:01:46.3]} 14... Ne5 {[%clk 0:01:13.6]} 15. Nxe5 {[%clk 0:01:45.5]} 15... Bxe5
{[%clk 0:01:13]} 16. Qe2 {[%clk 0:01:45.8]} 1-0